Cogmind - Beta 14 @@@ ROGUE MODE // 2024.09.21 @ 13:23:18 Player: Feuermagier Result: Destroyed by S-10 Pest with Light Assault Rifle Performance ------------- Evolutions (0) 0 Regions Visited (2) 400 Robots Destroyed (16) 80 Value Destroyed (504) 504 Prototype IDs (0) 0 Alien Tech Used (0) 0 Bonus (0) 0 TOTAL SCORE: 984 Bonus ------- None Cogmind --------- Core Integrity 0/250 Matter 266/300 Energy 250/250 System Corruption 0% Temperature Cool (0) Movement Rolling (110) Location -10/Subcaves Parts ------- > --- POWER (1) -------- Ion Engine > --- PROPULSION (2) --- Subdweller Monowheel Subdweller Monowheel > --- UTILITY (2) ------ Medium Storage Unit > --- WEAPON (2) ------- Assault Rifle Assault Rifle > --- INVENTORY (10) --- Light Ion Engine Subdweller Monowheel Heat Sink Heat Sink Small Storage Unit Large Battery (200) Sensor Array Assault Rifle Assault Rifle Peak State ------------ > --- POWER ------------ Ion Engine > --- PROPULSION ------- Subdweller Monowheel Subdweller Monowheel > --- UTILITY ---------- Medium Storage Unit Light Armor Plating > --- WEAPON ----------- Assault Rifle Assault Rifle > --- INVENTORY -------- Light Ion Engine Subdweller Monowheel Heat Sink Heat Sink Small Storage Unit Large Battery Sensor Array Assault Rifle Assault Rifle [Rating: 10] Favorites ----------- Power Ion Engine Engine Ion Engine Propulsion Light Treads Treads Light Treads Wheel Subdweller Monowheel Utility Medium Storage Unit Device Heat Sink Storage Medium Storage Unit Protection Light Armor Plating Weapon Medium Laser Energy Gun Medium Laser Ballistic Gun Assault Rifle Build | -11 -10 -10 ------- Run | Yrd Mat Sub Slots Evolved . | . . . Power . | . . . Propulsion . | . . . Utility . | . . . Weapon . | . . . Parts Attached 22 | 6 12 4 Power 3 | 1 2 . Engine 3 | 1 2 . Core . | . . . Reactor . | . . . Propulsion 5 | 2 . 3 Treads 2 | 2 . . Leg . | . . . Wheel 3 | . . 3 Hover . | . . . Flight . | . . . Utility 7 | 1 6 . Device 4 | . 4 . Storage 2 | 1 1 . Processor . | . . . Hackware . | . . . Protection 1 | . 1 . Artifact . | . . . Weapon 7 | 2 4 1 Energy Gun 5 | 2 3 . Energy Cannon . | . . . Ballistic Gun 2 | . 1 1 Ballistic Cannon . | . . . Launcher . | . . . Special Weapon . | . . . Impact Weapon . | . . . Slashing Weapon . | . . . Piercing Weapon . | . . . Special Melee Weapon . | . . . Unidentified Prototypes . | . . . Parts Lost 4 | . . 4 Power . | . . . Propulsion 2 | . . 2 Utility 1 | . . 1 Weapon 1 | . . 1 Highest Loss Streak 3 | . . 3 To Critical Strikes . | . . . Average Slot Usage (%) 98 | . 99 94 Engine 14 | . 14 14 Treads 26 | . 28 18 Wheel 1 | . . 6 Device 4 | . 5 . Storage 14 | . 14 14 Protection 9 | . 8 12 Energy Gun 17 | . 19 9 Ballistic Gun 10 | . 8 18 Peak Build Rating 10 | 6 8 10 Average Rating 7 | 4 7 8 On Entrance 4 | . 6 8 Naked Turns . | . . . Heaviest Build 22 | 11 22 22 Greatest Support 40 | 40 40 40 Greatest Overweight (x) 3 | . 3 1 Average Overweight (x) . | . . . Largest Inventory Capacity 10 | 8 10 10 Average Capacity 9 | 7 9 10 Most Carried 10 | 2 10 10 Average Carried 8 | . 7 9 Final Capacity 10 | 8 10 10 Final Carried 10 | 2 10 9 Class Distribution -------------------- 100% | Mutant Dominant Class ---------------- Mutant | -10/Materials Mutant | -10/Subcaves Resources | -11 -10 -10 ----------- Run | Yrd Mat Sub Matter Collected 486 | 180 160 146 Remotely . | . . . Salvage Created 588 | . 407 181 Parts 31 | . 16 15 Haulers Intercepted . | . . . Recyclers Shooed . | . . . Parts Field Recycled . | . . . Retrieved Matter . | . . . Parts Self-Destructed 8 | . . 8 Prevented . | . . . Kills | -11 -10 -10 ------- Run | Yrd Mat Sub Combat Hostiles Destroyed 14 | . 9 5 Guns 13 | . 8 5 Classes Destroyed 4 | . 2 2 Watcher 2 | . 2 . Swarmer 2 | . . 2 Grunt 9 | . 9 . Subdweller 3 | . . 3 Best Kill Streak 4 | . 4 2 Combat Bots Only 3 | . 3 2 Max Kills in Single Turn 1 | . 1 1 Gunslinging . | . . . Exploded . | . . . Melee . | . . . Uniques/NPCs Destroyed . | . . . Combat | -11 -10 -10 -------- Run | Yrd Mat Sub Hostile Shots Fired 88 | . 50 38 Missed 22 | . 11 11 Damage Taken 1036 | . 467 569 Core 255 | . 98 157 Absorbed by Shields . | . . . Core Remaining (%) 100 | 100 . . Volleys Fired 63 | . 39 24 Largest 2 | . 2 2 Hottest 90 | . 90 70 Shots Fired 122 | . 78 44 Gun 122 | . 78 44 Cannon . | . . . Launcher . | . . . Special . | . . . Kinetic 40 | . . 40 Thermal 82 | . 78 4 Explosive . | . . . Electromagnetic . | . . . Robot Hit Streak 30 | . 13 30 Robot Miss Streak 3 | . 3 2 Penetration Max . | . . . Secondary Targets 1 | . . 1 Max Gunslinging Chain 1 | . . 1 Shots Hit Robots 93 | . 54 39 Core Hits 30 | . 21 9 Critical Kills . | . . . Critical Parts Destroyed . | . . . Critical Strikes 3 | . 2 1 Burn 2 | . 2 . Destroy 1 | . . 1 Melee Attacks . | . . . Impact . | . . . Slashing . | . . . Piercing . | . . . Sneak Attacks . | . . . Combat Hostiles . | . . . Follow-up Attacks . | . . . Damage Inflicted 1134 | . 641 493 Guns 1134 | . 641 493 Cannons . | . . . Explosions . | . . . Melee . | . . . Ramming . | . . . Kinetic 443 | . . 443 Thermal 691 | . 641 50 Explosive . | . . . Electromagnetic . | . . . Impact . | . . . Slashing . | . . . Piercing . | . . . Highest Corruption . | . . . Average Corruption . | . . . Corruption Purged . | . . . Corruption Blocked . | . . . Overload Shots . | . . . Overflow Damage . | . . . Projectiles . | . . . Explosions . | . . . Melee . | . . . Knockbacks . | . . . Impact . | . . . Kinetic . | . . . Secondary . | . . . Self-Inflicted Damage . | . . . Shots . | . . . Rammed . | . . . Targets Rammed . | . . . Kicked . | . . . Crushed . | . . . Highest Temperature 354 | . 354 . Average Temperature 115 | . 115 . Received Heat Transfer 306 | . 282 24 Effects 2 | . 2 . Shutdowns 1 | . 1 . Interference 1 | . 1 . Siege Activations . | . . . Robots Corrupted . | . . . Combat Hostiles . | . . . Parts Fried . | . . . Impact Corruptions . | . . . Robots Melted 1 | . 1 . Combat Hostiles 1 | . 1 . Parts Melted 2 | . 2 . Heat Transferred 2007 | . 1859 148 Parts Sabotaged . | . . . Parts Stolen . | . . . Parts Stripped . | . . . Power Chain Reactions . | . . . Alert | -11 -10 -10 ------- Run | Yrd Mat Sub Peak Influence 255 | . 255 . Initial . | . . . Average 53 | . 56 . Maximum Alert Level 1 | . 1 . Low Security (%) 90 | 100 90 . Level 1 9 | . 9 . Level 2 . | . . . Level 3 . | . . . Level 4 . | . . . Level 5 . | . . . High Security . | . . . Max Security . | . . . Squads Dispatched 2 | . 2 . Investigation 1 | . 1 . Extermination . | . . . Reinforcement 1 | . 1 . Assault . | . . . Garrison . | . . . Intercept . | . . . Searches Triggered . | . . . Construction Impeded . | . . . Haulers Reinforced . | . . . Active Scanning Responses . | . . . Cargo Convoy Interrupts . | . . . Stealth | -11 -10 -10 --------- Run | Yrd Mat Sub Distress Signals 2 | . 2 . Communications Jammed . | . . . Distress Signals . | . . . Times Spotted 23 | . 17 6 Peak Tracking Total 4 | . 4 4 Tactical Retreats 1 | . 1 . Traps | -11 -10 -10 ------- Run | Yrd Mat Sub Traps Triggered 1 | . . 1 Indirectly . | . . . Trap Hack Attempts . | . . . Triggered . | . . . Disarmed . | . . . Reprogrammed . | . . . Reused . | . . . Traps Extracted . | . . . Installed . | . . . Triggered . | . . . Machines | -11 -10 -10 ---------- Run | Yrd Mat Sub Machines Disabled . | . . . Max in Single Turn . | . . . Machines Repaired . | . . . Machines Dismantled . | . . . Machines Sabotaged . | . . . Overloaded Fab Kills . | . . . Hacking | -11 -10 -10 --------- Run | Yrd Mat Sub Machines Accessed 4 | . 4 . Terminals 4 | . 4 . Fabricators . | . . . Repair Stations . | . . . Recycling Units . | . . . Scanalyzers . | . . . Garrison Access . | . . . Total Hacks 9 | . 9 . Successful 5 | . 5 . Failed 4 | . 4 . Catastrophic 3 | . 3 . Database Lockouts . | . . . Manual 7 | . 7 . Terminals 9 | . 9 . Fabricators . | . . . Repair Stations . | . . . Recycling Units . | . . . Scanalyzers . | . . . Garrison Access . | . . . Terminal Hacks 4 | . 4 . Branch Access Points 1 | . 1 . Alert Level 1 | . 1 . Unreport Threat 1 | . 1 . Recall Investigation 1 | . 1 . Fabricator Hacks . | . . . Repair Station Hacks . | . . . Recycling Unit Hacks . | . . . Scanalyzer . | . . . Garrison Access Hacks . | . . . Unauthorized Hacks 1 | . 1 . Terminals 1 | . 1 . Botnet 1 | . 1 . Fabricators . | . . . Repair Stations . | . . . Recycling Units . | . . . Scanalyzers . | . . . Garrison Access . | . . . Data Cores Recovered . | . . . Used . | . . . Hacking Detections 4 | . 4 . Full Trace Events 1 | . 1 . Feedback Events . | . . . Feedback Blocked . | . . . Robot Schematics Acquired . | . . . Robots Built . | . . . Authchips . | . . . Time . | . . . Total Robot Build Rating . | . . . Part Schematics Acquired . | . . . Parts Built . | . . . Authchips . | . . . Time . | . . . Total Part Build Rating . | . . . Parts Repaired . | . . . Time . | . . . Parts Recycled . | . . . Recycled Matter . | . . . Retrieved Matter . | . . . Retrieved Components . | . . . Parts Scanalyzed . | . . . Part Schematics Acquired . | . . . Parts Damaged . | . . . Bothacking | -11 -10 -10 ------------ Run | Yrd Mat Sub Used RIF Installer . | . . . Robots Hacked . | . . . Non-combat . | . . . Combat . | . . . Robot Hacks Applied . | . . . Relay Couplers Released . | . . . Fabnet Peak Effective % . | . . . Robots Rewired . | . . . Allies Hacked . | . . . Hacks Repelled . | . . . Allies | -11 -10 -10 -------- Run | Yrd Mat Sub Total Allies . | . . . Largest Group . | . . . Highest-Rated Group . | . . . Highest-Rated Ally . | . . . Total Orders . | . . . Ally Attacks . | . . . Total Damage . | . . . Kills . | . . . Allies Corrupted . | . . . Allies Melted . | . . . Intel | -11 -10 -10 ------- Run | Yrd Mat Sub Robot Analysis Total . | . . . Derelict Logs Recovered . | . . . Drone Launches . | . . . Drone Recoveries . | . . . Exploration | -11 -10 -10 ------------- Run | Yrd Mat Sub Turns Passed 1815 | 60 1380 375 Spaces Moved 595 | 34 355 206 Core 5 | 4 1 . Treads 531 | 30 354 147 Legs . | . . . Wheels 59 | . . 59 Hover . | . . . Flight . | . . . Fastest Speed 50 | 50 160 110 Average Speed 154 | 147 160 145 Slowest Speed 200 | 160 200 160 Overloaded Moves . | . . . Propulsion Burnouts . | . . . Robots Hopped . | . . . Cave-ins Triggered . | . . . Exploration Rate (%) 27 | 4 59 19 Regions Visited 2 Branch Regions 1 Pre-discovered Areas . | . . . Known Exits Taken . | . . . Unknown Exits Taken 2 | 1 1 . Scrap Searched . | . . . Spaces Dug . | . . . Terrain Destroyed . | . . . Melee . | . . . Projectile . | . . . AOE . | . . . Terrain Rammed . | . . . Walls Destroyed . | . . . Machines Disabled . | . . . Actions | -11 -10 -10 --------- Run | Yrd Mat Sub Total 1362 | 41 1085 236 Wait 671 | . 671 . Move 593 | 33 354 206 Hop . | . . . Pick Up 8 | 2 5 1 Fast Attach 11 | 6 4 1 Attach 2 | . . 2 Detach 1 | . 1 . Swap 9 | . 8 1 Drop 4 | . 3 1 Fire 63 | . 39 24 Melee . | . . . Ram . | . . . Kick . | . . . Crush . | . . . Escape Stasis . | . . . Rewire . | . . . Trap . | . . . Miscellaneous . | . . . Route ------- -11/Scrapyard -10/Materials (discovered 3 exits: *Min x2 / [*Sub]) -10/Subcaves History --------- Turn | Location | Event 3 | -11/Scrapyard | Discovered new exit (range 15) 61 | -11/Scrapyard | Entered Materials 183 | -10/Materials | Identified exit to Mines 322 | -10/Materials | Build established: Mutant 1418 | -10/Materials | Discovered new exit (range 6) 1441 | -10/Materials | Entered Subcaves 1530 | -10/Subcaves | Shifting Twisted Machinery released Sub. Monowheel 1534 | -10/Subcaves | Shifting Twisted Machinery released Sub. Optics 1690 | -10/Subcaves | Core integrity fell below 50% 1729 | -10/Subcaves | Lost 3 parts (2n1w) 1760 | -10/Subcaves | Ambushed by Subdwellers from Twisted Machinery 1764 | -10/Subcaves | Core integrity fell below 20% 1816 | -10/Subcaves | Destroyed by S-10 Pest with Light Assault Rifle Last Messages --------------- 01570_ Subatomizers dissect the Lgt. Ion Engine, destroying it. 01687_ Lgt. Treads destroyed. 01687_ Med. Laser destroyed. 01692_ EH-37W(R) suffers critical hit (Destroy). 01698_ Lgt. Treads destroyed. 01699_ EH-37W(R) destroyed. 01699_ Switching to secondary target: IA-78U(R). 01701_ Subatomizers dissect the Sub. Monowheel. 01705_ IA-78U(R) affixes Scrap Shield Fragment to Scrap Shield. 01714_ Subatomizers dissect the Sub. Monowheel. 01717_ IA-78U(R) destroyed. 01724_ Acquired 56 matter. 01725_ Acquired 32 matter. 01726_ Subatomizers dissect the Sub. Monowheel. 01727_ Acquired Sub. Monowheel. 01760_ L6-DGK(R) emerges from the Twisted Machinery. 01760_ Lgt. Armor Plating destroyed. 01769_ WY-49M(R) destroyed. 01794_ Acquired 58 matter. 01803_ S-10 Pest destroyed. Map ----- +----------------------------------------------------+ | ?????????????????????????????????????????????????? | | ?????????????????????????????????????????????????? | | ?????????????????????????????????????????????????? | | ?????????????????????????????????????????????????? | | ?????????????????????????????????????????????????? | | ?????????????????????????????????????????????????? | | ?????????????????????????????????????????????????? | | ?????????????????????????????????????????????????? | | ?????????????????????????????????????????????????? | | ?????????????????????????????????????????????????? | | ?????????????????????????????????????????????????? | | ?????????????????????????????????????????????????? | | ?????????????????????????????????????????????????? | | ?????????????????????????????????????????????????? | | ?????????????????????????????????????????????????? | | ?????????????????????????????????????????????????? | | ?????????????##??????????????????????????????????? | | ???????###### #########??????????????????????????? | | ??????## ##"""%%"??????????????????????????? | | ??????? #?#" *=????????????????????? ???? | | ???????# #?#" = ####?????????????## ???? | | ???????# #???" ##??????????? ????? | | #?????## #????? ##?????????? ?????? | | ####### ##?????? s ##????????? ??????? | | ## # #???????# ##??????? #???????? | | & #???????# @ ##?????? #?? #???? | | #???????# ##????# ## ## ? | | #&# # # ###????## #??## "? | | ####### ###### ##?## ??? | | ??????## ####*"" #??????? | | ???????# ### & "" #????????? | | ???????####?##### ## !&=""#????????? | | ????????????????## ###### ###"#????????? | | ?????????????????######????##########???#????????? | | ?????????????????????????????????????????????????? | | ?????????????????????????????????????????????????? | | ?????????????????????????????????????????????????? | | ?????????????????????????????????????????????????? | | ?????????????????????????????????????????????????? | | ?????????????????????????????????????????????????? | | ?????????????????????????????????????????????????? | | ?????????????????????????????????????????????????? | | ?????????????????????????????????????????????????? | | ?????????????????????????????????????????????????? | | ?????????????????????????????????????????????????? | | ?????????????????????????????????????????????????? | | ?????????????????????????????????????????????????? | | ?????????????????????????????????????????????????? | | | | | +----------------------------------------------------+ Best States ------------- Heat Dissipation 35 Energy Generation 10 Energy Capacity 250 Matter Stores 300 Matter Capacity 300 Sight Range 16 Robot Scan Range 14 Terrain Scan Density 10 Armor Coverage 150 Evasion (%) 40 Recoil Reduction 2 Item Schematics ----------------- None Robot Schematics ------------------ None Fabricated ------------ Nothing Alien Tech Used ----------------- None Achievements -------------- None Challenges ------------ None Game ------ Seed DamperCorruptionClaw Manual? 0 Play Time 00:15:10 Cumulative 50.6 hours Start 2024.09.21 @ 13:09:53 End 2024.09.21 @ 13:23:18 Sessions 1 Manual Loads 0 Difficulty Rogue Special Mode None Game No. 20 Rogue 20 Adventurer 0 Explorer 0 Win Type - Total 1 Types 1/0/0/0/0/0/0/0/0 Lore% 33 Gallery% 38 Achievement% 35 Wizard Run 0 Options --------- Layout 0 ASCII 0 Keyboard 1 Movement Numpad Keybinds 1 Fullscreen 2 Font 24/X11 Map View 76x50 Zoom Use 0% Tactical HUD 1 Map Filters NONE Filters NONE Steam 1 RUN: f3bdcb75-9646-4f2e-b0b2-0a37bb001675